[Event "23rd ETCC Women 2021"]
[Site "Catez"]
[Date "2021.11.20"]
[Round "8.44"]
[White "Katkov, Michelle"]
[Black "Calzetta Ruiz, Monica"]
[Result "1/2-1/2"]
[ECO "B31"]
[WhiteElo "2059"]
[BlackElo "2201"]
[Annotator "NA"]
[PlyCount "110"]
[EventDate "2021.11.08"]
[EventType "team-tourn"]
[EventCountry "SLO"]
[SourceTitle "playchess.com"]
[Source "ChessBase"]
[SourceQuality "1"]
[WhiteTeam "Israel"]
[BlackTeam "Spain"]
[WhiteTeamCountry "ISR"]
[BlackTeamCountry "ESP"]
[TimeControl "40/5400+30:1800+30"]

1. e4 {[%emt 0:00:03]} c5 {[%emt 0:00:07]} 2. Nc3 {[%emt 0:00:05]} Nc6 {
[%emt 0:00:23]} 3. Bb5 {[%emt 0:00:05]} Nd4 {[%emt 0:05:35]} 4. Nf3 {[%emt 0:
00:12]} g6 {[%emt 0:02:29]} 5. O-O {[%emt 0:03:19]} Bg7 {[%emt 0:00:43]} 6.
Nxd4 {[%emt 0:06:40]} cxd4 {[%emt 0:00:40]} 7. Ne2 {[%emt 0:00:08]} Nf6 {
[%emt 0:14:51]} 8. e5 {[%emt 0:07:09]} Ng4 {[%emt 0:06:42]} 9. e6 {[%emt 0:09:
34]} fxe6 {[%emt 0:13:08]} 10. Nxd4 {[%emt 0:09:40]} Bxd4 {[%emt 0:07:05]} 11.
Qxg4 {[%emt 0:00:12]} Qb6 {[%emt 0:00:17]} 12. c3 {[%emt 0:05:23]} Bg7 {
[%emt 0:04:34]} 13. Ba4 {[%emt 0:02:50]} O-O {[%emt 0:00:30]} 14. d4 {[%emt 0:
04:47]} Rf7 {[%emt 0:17:23]} 15. h4 {[%emt 0:07:34]} Qa5 {[%emt 0:06:32]} 16.
Bc2 {[%emt 0:04:29]} d6 {[%emt 0:04:43]} 17. Bb3 {[%emt 0:01:47]} Qf5 {[%emt 0:
00:26]} 18. Qxf5 {[%emt 0:04:33]} Rxf5 {[%emt 0:00:13]} 19. Re1 {[%emt 0:01:40]
} Kf7 {[%emt 0:02:21]} 20. g4 {[%emt 0:07:45]} Ra5 {[%emt 0:00:19]} 21. Bc4 {
[%emt 0:01:04]} Bd7 {[%emt 0:02:31]} 22. b4 {[%emt 0:04:41]} Ra4 {[%emt 0:01:
04]} 23. Bb3 {[%emt 0:01:56]} Ra6 {[%emt 0:00:02]} 24. a4 {[%emt 0:00:19]} b5 {
[%emt 0:02:50]} 25. a5 {[%emt 0:09:24]} Rc8 {[%emt 0:01:19]} 26. Bd2 {[%emt 0:
00:13]} Rac6 {[%emt 0:05:00]} 27. d5 {[%emt 0:01:00]} Rc4 {[%emt 0:00:01]} 28.
Bxc4 {[%emt 0:00:41]} Rxc4 {[%emt 0:00:02]} 29. dxe6+ {[%emt 0:00:31]} Bxe6 {
[%emt 0:00:02]} 30. f3 {[%emt 0:00:57]} Bd5 {[%emt 0:01:16]} 31. Kf2 {[%emt 0:
00:42]} Bxc3 {[%emt 0:00:57]} 32. Bxc3 {[%emt 0:00:12]} Rxc3 {[%emt 0:00:06]}
33. Re3 {[%emt 0:00:57]} Rc2+ {[%emt 0:00:18]} 34. Re2 {[%emt 0:01:39]} Rc3 {
[%emt 0:00:02]} 35. Re3 {[%emt 0:00:17]} Rc2+ {[%emt 0:00:02]} 36. Kg3 {
[%emt 0:00:49]} Rb2 {[%emt 0:00:08]} 37. Rae1 {[%emt 0:03:24]} e6 {[%emt 0:00:
05]} 38. f4 {[%emt 0:01:02]} Rxb4 {[%emt 0:00:18]} 39. f5 {[%emt 0:00:22]} gxf5
{[%emt 0:01:58]} 40. gxf5 {[%emt 0:00:13]} exf5 {[%emt 0:02:45]} 41. Re7+ {
[%emt 0:03:46]} Kg6 {[%emt 0:00:01]} 42. Rd1 {[%emt 0:03:29]} f4+ {[%emt 0:05:
39]} 43. Kf2 {[%emt 0:04:50]} Rb2+ {[%emt 0:00:19]} 44. Ke1 {[%emt 0:03:46]}
Bc4 {[%emt 0:03:28]} 45. Rxd6+ {[%emt 0:00:15]} Kf5 {[%emt 0:00:01]} 46. Rd2 {
[%emt 0:05:09]} Rb1+ {[%emt 0:02:46]} 47. Kf2 {[%emt 0:01:05]} a6 {[%emt 0:13:
29]} 48. Rxh7 {[%emt 0:00:15]} b4 {[%emt 0:01:36]} 49. Rc7 {[%emt 0:04:29]} Bb5
{[%emt 0:01:05]} 50. Rcc2 {[%emt 0:05:00]} b3 {[%emt 0:01:47]} 51. Rb2 {
[%emt 0:00:18]} Rh1 {[%emt 0:04:45]} 52. Rxb3 {[%emt 0:04:08]} Rh2+ {[%emt 0:
00:07]} 53. Ke1 {[%emt 0:00:05]} Rh1+ {[%emt 0:00:20]} 54. Kf2 {[%emt 0:00:03]}
Rh2+ {[%emt 0:00:12]} 55. Ke1 {[%emt 0:00:04]} Rh1+ {[%emt 0:00:40]} 1/2-1/2

[Event "23rd ETCC Women 2021"]
[Site "Catez"]
[Date "2021.11.20"]
[Round "8.45"]
[White "Cramling, Pia"]
[Black "Hrescak, Ivana"]
[Result "1-0"]
[ECO "B38"]
[WhiteElo "2457"]
[BlackElo "2138"]
[Annotator "ChessBase"]
[PlyCount "71"]
[EventDate "2021.11.08"]
[EventType "team-tourn"]
[EventCountry "SLO"]
[SourceTitle "playchess.com"]
[Source "ChessBase"]
[SourceQuality "1"]
[WhiteTeam "Sweden"]
[BlackTeam "Slovenia"]
[WhiteTeamCountry "SWE"]
[BlackTeamCountry "SLO"]
[TimeControl "40/5400+30:1800+30"]

1. d4 {[%emt 0:00:15]} Nf6 {[%emt 0:00:08]} 2. c4 {[%emt 0:00:11]} g6 {[%emt 0:
00:00]} 3. Nc3 {[%emt 0:00:08]} Bg7 {[%emt 0:00:03]} 4. e4 {[%emt 0:00:10]} d6
{[%emt 0:00:04]} 5. h3 {[%emt 0:00:39]} O-O {[%emt 0:00:06]} 6. Be3 {[%emt 0:
00:06]} c5 {[%emt 0:00:08]} 7. Nf3 {[%emt 0:00:13]} cxd4 {[%emt 0:00:17]} 8.
Nxd4 {[%emt 0:00:06]} Nc6 {[%emt 0:00:04]} 9. Be2 {[%emt 0:00:11]} Bd7 {
[%emt 0:01:07]} 10. O-O {[%emt 0:03:04]} Nxd4 {[%emt 0:04:57]} 11. Bxd4 {
[%emt 0:00:00]} Bc6 {[%emt 0:03:31]} 12. Qc2 {[%emt 0:00:58]} a5 {[%emt 0:00:
00]} 13. Rad1 {[%emt 0:01:24]} Nd7 {[%emt 0:06:27]} 14. Bxg7 {[%emt 0:06:00]}
Kxg7 {[%emt 0:00:22]} 15. Rfe1 {[%emt 0:05:56]} a4 {[%emt 0:03:13]} 16. Bf1 {
[%emt 0:12:23]} Qa5 {[%emt 0:03:04]} 17. Nd5 {[%emt 0:00:41]} Rfe8 {[%emt 0:01:
30]} 18. Re3 {[%emt 0:00:37]} Rac8 {[%emt 0:02:15]} 19. Qe2 {[%emt 0:06:30]}
Qd8 {[%emt 0:22:36]} 20. Qd2 {[%emt 0:07:14]} Ra8 {[%emt 0:11:39]} 21. Be2 {
[%emt 0:03:18]} Qa5 {[%emt 0:06:39]} 22. Qc1 {[%emt 0:03:01]} Rab8 {[%emt 0:02:
05]} 23. b4 {[%emt 0:06:26]} axb3 {[%emt 0:01:27]} 24. axb3 {[%emt 0:00:07]}
Ra8 {[%emt 0:07:10]} 25. b4 {[%emt 0:02:16]} Qd8 {[%emt 0:00:10]} 26. Nc3 {
[%emt 0:01:14]} b6 {[%emt 0:00:42]} 27. e5 {[%emt 0:06:58]} dxe5 {[%emt 0:03:
13]} 28. b5 {[%emt 0:11:47]} Bb7 {[%emt 0:00:00]} 29. Red3 {[%emt 0:00:12]} Bc8
{[%emt 0:00:10]} 30. Bf3 {[%emt 0:00:28]} Ra7 {[%emt 0:01:06]} 31. Bc6 {
[%emt 0:00:12]} e6 {[%emt 0:00:57]} 32. Ne4 {[%emt 0:03:13]} Re7 {[%emt 0:03:
20]} 33. Qg5 {[%emt 0:03:58]} h6 {[%emt 0:06:50]} 34. Rxd7 {[%emt 0:00:36]}
Bxd7 {[%emt 0:02:07]} 35. Qxe5+ {[%emt 0:00:21]} Kg8 {[%emt 0:01:15]} 36. Nf6+
{[%emt 0:01:06]} 1-0

[Event "23rd ETCC Women 2021"]
[Site "Catez"]
[Date "2021.11.20"]
[Round "8.46"]
[White "Kolaric, Spela"]
[Black "Andric, Jelena"]
[Result "1-0"]
[ECO "A40"]
[WhiteElo "2178"]
[BlackElo "2041"]
[Annotator "NA"]
[PlyCount "53"]
[EventDate "2021.11.08"]
[EventType "team-tourn"]
[EventCountry "SLO"]
[SourceTitle "playchess.com"]
[Source "ChessBase"]
[SourceQuality "1"]
[WhiteTeam "Slovenia"]
[BlackTeam "Sweden"]
[WhiteTeamCountry "SLO"]
[BlackTeamCountry "SWE"]
[TimeControl "40/5400+30:1800+30"]

1. d4 {[%emt 0:00:03]} e6 {[%emt 0:00:26]} 2. c4 {[%emt 0:00:34]} b6 {[%emt 0:
00:48]} 3. e4 {[%emt 0:01:06]} Bb7 {[%emt 0:01:08]} 4. Bd3 {[%emt 0:02:53]}
Bb4+ {[%emt 0:04:00]} 5. Bd2 {[%emt 0:04:33]} Qe7 {[%emt 0:07:35]} 6. Nf3 {
[%emt 0:00:00]} Nf6 {[%emt 0:06:50]} 7. Qe2 {[%emt 0:00:00]} Bxd2+ {[%emt 0:08:
40]} 8. Nbxd2 {[%emt 0:00:00]} d6 {[%emt 0:03:09]} 9. O-O {[%emt 0:02:32]} e5 {
[%emt 0:03:08]} 10. d5 {[%emt 0:01:11]} Nbd7 {[%emt 0:03:38]} 11. b4 {[%emt 0:
03:17]} Nh5 {[%emt 0:04:08]} 12. Qe3 {[%emt 0:07:25]} h6 {[%emt 0:08:30]} 13.
Rfc1 {[%emt 0:02:13]} O-O {[%emt 0:03:42]} 14. g3 {[%emt 0:04:16]} g5 {[%emt 0:
10:52]} 15. Nb3 {[%emt 0:07:52]} f5 {[%emt 0:06:22]} 16. exf5 {[%emt 0:03:30]}
Ndf6 {[%emt 0:01:15]} 17. Nfd4 {[%emt 0:08:15]} e4 {[%emt 0:11:48]} 18. f3 {
[%emt 0:06:21]} Rae8 {[%emt 0:05:29]} 19. Re1 {[%emt 0:00:40]} Qe5 {[%emt 0:04:
18]} 20. fxe4 {[%emt 0:00:52]} a5 {[%emt 0:02:29]} 21. bxa5 {[%emt 0:01:59]}
bxa5 {[%emt 0:00:02]} 22. Ne6 {[%emt 0:00:43]} Rf7 {[%emt 0:00:32]} 23. Qd4 {
[%emt 0:01:34]} Ng4 {[%emt 0:00:43]} 24. Be2 {[%emt 0:01:43]} Nxg3 {[%emt 0:01:
18]} 25. Bxg4 {[%emt 0:00:14]} h5 {[%emt 0:01:10]} 26. Qxe5 {[%emt 0:00:13]}
dxe5 {[%emt 0:00:07]} 27. Bd1 {[%emt 0:00:16]} 1-0

[Event "23rd ETCC Women 2021"]
[Site "Catez"]
[Date "2021.11.20"]
[Round "8.47"]
[White "Zaritovskaja, Margarita"]
[Black "Ruzic, Pia Marie"]
[Result "1-0"]
[ECO "C01"]
[WhiteElo "2040"]
[BlackElo "2049"]
[Annotator "NA"]
[PlyCount "37"]
[EventDate "2021.11.08"]
[EventType "team-tourn"]
[EventCountry "SLO"]
[SourceTitle "playchess.com"]
[Source "ChessBase"]
[SourceQuality "1"]
[WhiteTeam "Sweden"]
[BlackTeam "Slovenia"]
[WhiteTeamCountry "SWE"]
[BlackTeamCountry "SLO"]
[TimeControl "40/5400+30:1800+30"]

1. e4 {[%emt 0:00:02]} e6 {[%emt 0:00:07]} 2. d4 d5 {[%emt 0:00:30]} 3. Bd3 {
[%emt 0:00:35]} c5 {[%emt 0:01:39]} 4. exd5 {[%emt 0:00:00]} exd5 {[%emt 0:00:
48]} 5. Nf3 {[%emt 0:03:22]} Nf6 {[%emt 0:02:42]} 6. O-O {[%emt 0:05:49]} c4 {
[%emt 0:09:45]} 7. Be2 {[%emt 0:00:00]} Be7 {[%emt 0:00:25]} 8. b3 {[%emt 0:00:
00]} cxb3 {[%emt 0:01:54]} 9. axb3 {[%emt 0:00:00]} O-O {[%emt 0:00:33]} 10. c4
{[%emt 0:00:00]} b6 {[%emt 0:08:11]} 11. Nc3 {[%emt 0:02:18]} Bg4 {[%emt 0:02:
20]} 12. Ne5 {[%emt 0:09:42]} Bxe2 {[%emt 0:03:57]} 13. Nxe2 {[%emt 0:05:46]}
Qc7 {[%emt 0:04:59]} 14. Ng3 {[%emt 0:09:58]} g6 {[%emt 0:21:16]} 15. Bf4 {
[%emt 0:11:08]} Bd6 {[%emt 0:00:00]} 16. Qf3 {[%emt 0:03:26]} Re8 {[%emt 0:19:
58]} 17. cxd5 {[%emt 0:14:07]} Nbd7 {[%emt 0:01:43]} 18. Rac1 {[%emt 0:03:15]}
Qb7 {[%emt 0:00:41]} 19. Nxd7 {[%emt 0:01:00]} 1-0

[Event "23rd ETCC Women 2021"]
[Site "Catez"]
[Date "2021.11.20"]
[Round "8.48"]
[White "Mihelic, Vesna"]
[Black "Cramling Bellon, Anna"]
[Result "1/2-1/2"]
[ECO "B30"]
[WhiteElo "1912"]
[BlackElo "2035"]
[Annotator "NA"]
[PlyCount "85"]
[EventDate "2021.11.08"]
[EventType "team-tourn"]
[EventCountry "SLO"]
[SourceTitle "playchess.com"]
[Source "ChessBase"]
[SourceQuality "1"]
[WhiteTeam "Slovenia"]
[BlackTeam "Sweden"]
[WhiteTeamCountry "SLO"]
[BlackTeamCountry "SWE"]
[TimeControl "40/5400+30:1800+30"]

1. e4 {[%emt 0:00:03]} c5 {[%emt 0:00:05]} 2. Nf3 {[%emt 0:00:05]} Nc6 {
[%emt 0:00:12]} 3. Bb5 {[%emt 0:00:10]} e6 {[%emt 0:00:23]} 4. O-O {[%emt 0:00:
18]} Nge7 {[%emt 0:00:20]} 5. Re1 {[%emt 0:05:24]} Ng6 {[%emt 0:03:54]} 6. Nc3
{[%emt 0:02:08]} Nd4 {[%emt 0:05:33]} 7. Nxd4 {[%emt 0:00:00]} cxd4 {[%emt 0:
00:07]} 8. Ne2 {[%emt 0:00:28]} Bc5 {[%emt 0:08:00]} 9. d3 {[%emt 0:03:03]} O-O
{[%emt 0:01:01]} 10. a3 {[%emt 0:07:49]} a6 {[%emt 0:09:49]} 11. Ba4 {[%emt 0:
10:03]} d5 {[%emt 0:04:55]} 12. Ng3 {[%emt 0:01:45]} b5 {[%emt 0:06:14]} 13.
Bb3 {[%emt 0:00:12]} dxe4 {[%emt 0:01:45]} 14. Nxe4 {[%emt 0:00:29]} Be7 {
[%emt 0:00:20]} 15. Qh5 {[%emt 0:04:03]} Bb7 {[%emt 0:08:14]} 16. Bg5 {[%emt 0:
03:08]} h6 {[%emt 0:06:37]} 17. Bxe7 {[%emt 0:08:06]} Nxe7 {[%emt 0:00:00]} 18.
Nc5 {[%emt 0:05:13]} Bd5 {[%emt 0:06:36]} 19. Bxd5 {[%emt 0:07:10]} Nxd5 {
[%emt 0:00:12]} 20. Qe5 {[%emt 0:04:15]} Ne7 {[%emt 0:03:20]} 21. Re4 {[%emt 0:
13:22]} Nc6 {[%emt 0:05:00]} 22. Qg3 {[%emt 0:01:35]} Qe7 {[%emt 0:02:13]} 23.
Nb3 {[%emt 0:06:36]} f5 {[%emt 0:02:05]} 24. Re2 {[%emt 0:01:33]} e5 {[%emt 0:
01:27]} 25. Rae1 {[%emt 0:00:41]} e4 {[%emt 0:11:01]} 26. dxe4 {[%emt 0:02:21]}
f4 {[%emt 0:00:04]} 27. Qh3 {[%emt 0:01:05]} f3 {[%emt 0:05:09]} 28. Rd2 {
[%emt 0:04:06]} fxg2 {[%emt 0:03:48]} 29. Nxd4 {[%emt 0:00:30]} Ne5 {[%emt 0:
01:38]} 30. Qxg2 {[%emt 0:02:55]} Rad8 {[%emt 0:01:03]} 31. Nf5 {[%emt 0:01:22]
} Qf6 {[%emt 0:03:29]} 32. Red1 {[%emt 0:01:21]} Rxd2 {[%emt 0:00:53]} 33. Rxd2
{[%emt 0:00:01]} Nf7 {[%emt 0:00:53]} 34. Rd7 {[%emt 0:03:44]} Kh7 {[%emt 0:00:
06]} 35. c3 {[%emt 0:00:59]} Re8 {[%emt 0:00:58]} 36. Rxf7 {[%emt 0:00:37]}
Qxf7 {[%emt 0:00:26]} 37. Nd6 {[%emt 0:00:01]} Qd7 {[%emt 0:00:23]} 38. Nxe8 {
[%emt 0:00:09]} Qd1+ {[%emt 0:00:33]} 39. Qf1 {[%emt 0:00:01]} Qg4+ {[%emt 0:
00:04]} 40. Qg2 {[%emt 0:00:46]} Qd1+ {[%emt 0:00:06]} 41. Qf1 {[%emt 0:30:05]}
Qg4+ {[%emt 0:30:03]} 42. Qg2 {[%emt 0:00:10]} Qd1+ {[%emt 0:00:08]} 43. Qf1 {
[%emt 0:00:04]} 1/2-1/2

[Event "23rd ETCC Women 2021"]
[Site "Catez"]
[Date "2021.11.20"]
[Round "8.49"]
[White "Cvitan, Ena"]
[Black "Stojkovska, Monika"]
[Result "1/2-1/2"]
[ECO "E12"]
[WhiteElo "2234"]
[BlackElo "2066"]
[Annotator "NA"]
[PlyCount "73"]
[EventDate "2021.11.08"]
[EventType "team-tourn"]
[EventCountry "SLO"]
[SourceTitle "playchess.com"]
[Source "ChessBase"]
[SourceQuality "1"]
[WhiteTeam "Croatia"]
[BlackTeam "Macedonia"]
[WhiteTeamCountry "CRO"]
[BlackTeamCountry "MKD"]
[TimeControl "40/5400+30:1800+30"]

1. d4 {[%emt 0:00:12]} Nf6 {[%emt 0:00:16]} 2. c4 {[%emt 0:00:14]} e6 {[%emt 0:
00:05]} 3. Nf3 {[%emt 0:00:10]} b6 {[%emt 0:00:29]} 4. a3 {[%emt 0:00:09]} Bb7
{[%emt 0:01:14]} 5. Bf4 {[%emt 0:01:12]} d5 {[%emt 0:01:57]} 6. cxd5 {[%emt 0:
01:06]} exd5 {[%emt 0:05:56]} 7. Nc3 {[%emt 0:02:47]} Bd6 {[%emt 0:00:16]} 8.
Bg5 {[%emt 0:02:02]} O-O {[%emt 0:02:38]} 9. e3 {[%emt 0:01:04]} Nbd7 {[%emt 0:
03:56]} 10. Bd3 {[%emt 0:09:20]} h6 {[%emt 0:13:10]} 11. Bh4 {[%emt 0:00:16]}
c5 {[%emt 0:04:21]} 12. dxc5 {[%emt 0:03:23]} bxc5 {[%emt 0:03:06]} 13. O-O {
[%emt 0:01:28]} Qb6 {[%emt 0:03:45]} 14. Rb1 {[%emt 0:32:04]} Rfd8 {[%emt 0:23:
40]} 15. b4 {[%emt 0:00:00]} cxb4 {[%emt 0:03:35]} 16. Na4 {[%emt 0:00:00]} Qc7
{[%emt 0:01:16]} 17. axb4 {[%emt 0:00:00]} d4 {[%emt 0:02:45]} 18. e4 {[%emt 0:
00:29]} g5 {[%emt 0:07:52]} 19. Rc1 {[%emt 0:01:43]} Qb8 {[%emt 0:00:31]} 20.
Bg3 {[%emt 0:01:17]} Bxg3 {[%emt 0:02:10]} 21. fxg3 {[%emt 0:00:19]} Nxe4 {
[%emt 0:01:08]} 22. Bc4 {[%emt 0:07:28]} Ndf6 {[%emt 0:01:12]} 23. Nd2 {
[%emt 0:06:28]} Qe5 {[%emt 0:03:35]} 24. Nxe4 {[%emt 0:03:19]} Bxe4 {[%emt 0:
00:06]} 25. Qb3 {[%emt 0:02:56]} Bd5 {[%emt 0:01:15]} 26. Rce1 {[%emt 0:01:06]}
Bxc4 {[%emt 0:01:15]} 27. Qxc4 {[%emt 0:00:15]} Qd6 {[%emt 0:01:20]} 28. Nc5 {
[%emt 0:02:43]} Rac8 {[%emt 0:01:52]} 29. Qd3 {[%emt 0:01:24]} Re8 {[%emt 0:04:
08]} 30. Rd1 {[%emt 0:03:22]} Kg7 {[%emt 0:01:36]} 31. Rf3 {[%emt 0:01:31]} Re7
{[%emt 0:01:52]} 32. h4 {[%emt 0:06:49]} Rce8 {[%emt 0:01:49]} 33. hxg5 {
[%emt 0:01:27]} hxg5 {[%emt 0:00:01]} 34. Qd2 {[%emt 0:02:50]} Ne4 {[%emt 0:02:
25]} 35. Nxe4 {[%emt 0:00:29]} Rxe4 {[%emt 0:00:01]} 36. Qxg5+ {[%emt 0:00:09]}
Qg6 {[%emt 0:00:01]} 37. Qxg6+ {[%emt 0:03:46]} 1/2-1/2

[Event "23rd ETCC Women 2021"]
[Site "Catez"]
[Date "2021.11.20"]
[Round "8.50"]
[White "Trajkovska, Sanja"]
[Black "Medic, Mirjana"]
[Result "0-1"]
[ECO "C02"]
[WhiteElo "1960"]
[BlackElo "2196"]
[Annotator "NA"]
[PlyCount "74"]
[EventDate "2021.11.08"]
[EventType "team-tourn"]
[EventCountry "SLO"]
[SourceTitle "playchess.com"]
[Source "ChessBase"]
[SourceQuality "1"]
[WhiteTeam "Macedonia"]
[BlackTeam "Croatia"]
[WhiteTeamCountry "MKD"]
[BlackTeamCountry "CRO"]
[TimeControl "40/5400+30:1800+30"]

1. e4 {[%emt 0:00:02]} e6 {[%emt 0:00:07]} 2. d4 {[%emt 0:00:04]} d5 {[%emt 0:
00:05]} 3. e5 {[%emt 0:00:04]} c5 {[%emt 0:00:17]} 4. c3 {[%emt 0:00:11]} Nc6 {
[%emt 0:00:07]} 5. Nf3 {[%emt 0:00:08]} Qb6 {[%emt 0:00:14]} 6. Bd3 {[%emt 0:
00:08]} Bd7 {[%emt 0:00:23]} 7. dxc5 {[%emt 0:00:59]} Bxc5 {[%emt 0:00:53]} 8.
O-O {[%emt 0:03:23]} a5 {[%emt 0:05:56]} 9. Qc2 {[%emt 0:04:54]} Nge7 {[%emt 0:
01:32]} 10. Re1 {[%emt 0:04:17]} d4 {[%emt 0:14:08]} 11. a3 {[%emt 0:04:19]}
dxc3 {[%emt 0:02:04]} 12. Nxc3 {[%emt 0:02:21]} Nd4 {[%emt 0:00:36]} 13. Nxd4 {
[%emt 0:01:19]} Bxd4 {[%emt 0:00:03]} 14. Be3 {[%emt 0:01:27]} Bxe3 {[%emt 0:
07:35]} 15. Rxe3 {[%emt 0:00:22]} Rc8 {[%emt 0:00:25]} 16. Qe2 {[%emt 0:04:32]}
Nd5 {[%emt 0:07:01]} 17. Ne4 {[%emt 0:03:55]} Nxe3 {[%emt 0:02:03]} 18. Nd6+ {
[%emt 0:02:18]} Ke7 {[%emt 0:00:09]} 19. Nxc8+ {[%emt 0:01:58]} Rxc8 {[%emt 0:
00:08]} 20. fxe3 {[%emt 0:00:03]} Qc5 {[%emt 0:03:50]} 21. Rf1 {[%emt 0:04:02]}
Qxe5 {[%emt 0:08:15]} 22. Qf3 {[%emt 0:15:09]} f6 {[%emt 0:00:00]} 23. Be4 {
[%emt 0:01:58]} Qxb2 {[%emt 0:00:19]} 24. Qg3 {[%emt 0:04:31]} Kf7 {[%emt 0:07:
38]} 25. Bxh7 {[%emt 0:02:20]} Rc1 {[%emt 0:03:10]} 26. Bg6+ {[%emt 0:16:33]}
Ke7 {[%emt 0:00:39]} 27. Bd3 {[%emt 0:01:07]} Rxf1+ {[%emt 0:00:09]} 28. Kxf1 {
[%emt 0:02:54]} g5 {[%emt 0:01:41]} 29. Qc7 {[%emt 0:03:38]} Qxa3 {[%emt 0:00:
40]} 30. Ke2 {[%emt 0:06:11]} Qb2+ {[%emt 0:00:12]} 31. Kf3 {[%emt 0:00:29]}
Qb4 {[%emt 0:01:49]} 32. h3 {[%emt 0:02:00]} Qd6 {[%emt 0:01:13]} 33. Qc2 {
[%emt 0:02:44]} Qc6+ {[%emt 0:00:09]} 34. Qxc6 {[%emt 0:01:39]} Bxc6+ {[%emt 0:
00:01]} 35. e4 {[%emt 0:00:35]} b5 {[%emt 0:01:15]} 36. Kg4 {[%emt 0:00:50]} b4
{[%emt 0:01:13]} 37. g3 {[%emt 0:01:19]} a4 {[%emt 0:00:05]} 0-1

[Event "23rd ETCC Women 2021"]
[Site "Catez"]
[Date "2021.11.20"]
[Round "8.51"]
[White "Berke, Ana"]
[Black "Nikolovska, Dragana"]
[Result "1-0"]
[ECO "B53"]
[WhiteElo "2135"]
[BlackElo "1877"]
[Annotator "NA"]
[PlyCount "127"]
[EventDate "2021.11.08"]
[EventType "team-tourn"]
[EventCountry "SLO"]
[SourceTitle "playchess.com"]
[Source "ChessBase"]
[SourceQuality "1"]
[WhiteTeam "Croatia"]
[BlackTeam "Macedonia"]
[WhiteTeamCountry "CRO"]
[BlackTeamCountry "MKD"]
[TimeControl "40/5400+30:1800+30"]

1. e4 {[%emt 0:00:04]} c5 {[%emt 0:00:10]} 2. Nf3 {[%emt 0:00:06]} d6 {[%emt 0:
00:07]} 3. d4 {[%emt 0:00:12]} cxd4 {[%emt 0:00:09]} 4. Qxd4 {[%emt 0:00:06]}
Nc6 {[%emt 0:00:25]} 5. Bb5 {[%emt 0:01:30]} a6 {[%emt 0:00:25]} 6. Bxc6+ {
[%emt 0:00:09]} bxc6 {[%emt 0:00:05]} 7. c4 {[%emt 0:00:19]} e5 {[%emt 0:00:44]
} 8. Qd3 {[%emt 0:00:18]} Nf6 {[%emt 0:02:18]} 9. O-O {[%emt 0:05:56]} Qc7 {
[%emt 0:05:03]} 10. Rd1 {[%emt 0:00:00]} Be7 {[%emt 0:07:17]} 11. Nc3 {[%emt 0:
01:24]} O-O {[%emt 0:01:59]} 12. b3 {[%emt 0:01:29]} h6 {[%emt 0:02:18]} 13.
Ba3 {[%emt 0:01:20]} Rd8 {[%emt 0:02:40]} 14. Rac1 {[%emt 0:01:51]} Bb7 {
[%emt 0:11:57]} 15. Qe2 {[%emt 0:04:11]} Rd7 {[%emt 0:04:49]} 16. Rd3 {[%emt 0:
02:09]} Re8 {[%emt 0:06:29]} 17. Bb2 {[%emt 0:01:04]} Qd8 {[%emt 0:01:07]} 18.
Rcd1 {[%emt 0:07:33]} Bf8 {[%emt 0:00:27]} 19. Na4 {[%emt 0:03:34]} c5 {
[%emt 0:14:54]} 20. Nc3 {[%emt 0:11:40]} Re6 {[%emt 0:00:00]} 21. Nd2 {[%emt 0:
01:28]} Ne8 {[%emt 0:02:29]} 22. Nf1 {[%emt 0:01:46]} Rg6 {[%emt 0:01:04]} 23.
Ng3 {[%emt 0:01:28]} Nc7 {[%emt 0:03:11]} 24. Na4 {[%emt 0:03:50]} Bc6 {
[%emt 0:04:34]} 25. Nb6 {[%emt 0:06:21]} Re7 {[%emt 0:00:15]} 26. Nf5 {[%emt 0:
05:23]} Ree6 {[%emt 0:01:00]} 27. a4 {[%emt 0:05:19]} Qg5 {[%emt 0:06:09]} 28.
g3 {[%emt 0:01:24]} Qf4 {[%emt 0:01:51]} 29. f3 {[%emt 0:00:52]} Qg5 {[%emt 0:
01:42]} 30. Bc1 {[%emt 0:00:28]} Qh5 {[%emt 0:02:43]} 31. Qg2 {[%emt 0:01:45]}
Rg5 {[%emt 0:06:27]} 32. Bxg5 {[%emt 0:07:16]} Qxg5 {[%emt 0:00:02]} 33. Qd2 {
[%emt 0:00:56]} Qh5 {[%emt 0:04:46]} 34. Nc8 {[%emt 0:01:33]} Ne8 {[%emt 0:00:
55]} 35. Qe3 {[%emt 0:03:59]} Qg6 {[%emt 0:01:58]} 36. Qd2 {[%emt 0:01:51]} Qf6
{[%emt 0:01:17]} 37. Kg2 {[%emt 0:00:52]} Kh7 {[%emt 0:04:16]} 38. Ncxd6 {
[%emt 0:01:00]} Nxd6 {[%emt 0:00:22]} 39. Nxd6 {[%emt 0:00:18]} Qe7 {[%emt 0:
00:58]} 40. Nf5 {[%emt 0:00:36]} Qc7 {[%emt 0:00:32]} 41. Rd8 {[%emt 0:36:30]}
Be8 {[%emt 0:04:35]} 42. Ra8 {[%emt 0:00:00]} Qb7 {[%emt 0:04:37]} 43. Rd8 {
[%emt 0:00:00]} Qxb3 {[%emt 0:01:36]} 44. Ne3 {[%emt 0:00:00]} Qxa4 {[%emt 0:
04:26]} 45. Rb1 {[%emt 0:00:00]} Be7 {[%emt 0:02:03]} 46. Rd3 {[%emt 0:00:00]}
Bg5 {[%emt 0:01:22]} 47. Qc3 {[%emt 0:00:00]} Bxe3 {[%emt 0:05:23]} 48. Rxe3 {
[%emt 0:00:00]} Rd6 {[%emt 0:00:34]} 49. Re2 {[%emt 0:00:00]} Rd4 {[%emt 0:00:
35]} 50. Rc1 {[%emt 0:00:00]} f6 {[%emt 0:02:33]} 51. Rd2 {[%emt 0:00:00]} a5 {
[%emt 0:00:32]} 52. Rxd4 {[%emt 0:00:00]} exd4 {[%emt 0:00:10]} 53. Qc2 {
[%emt 0:00:00]} Qb4 {[%emt 0:02:12]} 54. Rb1 {[%emt 0:02:41]} Ba4 {[%emt 0:00:
56]} 55. Qa2 {[%emt 0:02:02]} Qc3 {[%emt 0:04:38]} 56. Qxa4 {[%emt 0:00:16]}
Qd2+ {[%emt 0:00:40]} 57. Kh3 {[%emt 0:01:58]} Qd3 {[%emt 0:00:49]} 58. Qb3 {
[%emt 0:00:31]} Qe2 {[%emt 0:00:26]} 59. Rd1 {[%emt 0:00:23]} a4 {[%emt 0:01:
04]} 60. Qd3 {[%emt 0:00:25]} Qa2 {[%emt 0:00:49]} 61. e5+ {[%emt 0:00:12]} Kg8
{[%emt 0:00:23]} 62. e6 {[%emt 0:00:35]} a3 {[%emt 0:00:40]} 63. e7 {[%emt 0:
00:17]} Kf7 {[%emt 0:00:11]} 64. Re1 {[%emt 0:00:13]} 1-0